[Event "European Womens-ch 2025"]
[Site "Rhodes"]
[Date "2025.04.10"]
[Round "10.8"]
[White "Doluhanova, Evgeniya"]
[Black "Kulon, Klaudia"]
[Result "0-1"]
[Annotator "RC"]
[ECO "D30"]
[WhiteElo "2287"]
[BlackElo "2401"]
[PlyCount "68"]
[EventDate "2025.03.29"]
[EventType "swiss"]
[EventCountry "GRE"]
[SourceTitle "playchess.com"]
[Source "ChessBase"]
[SourceQuality "1"]
[TimeControl "40/5400+30:1800+30"]

1. c4 {[%emt 0:00:10]} e6 {[%emt 0:01:58]} 2. d4 {[%emt 0:00:18]} d5 {[%emt 0:00:22]} 3. a3 {[%emt 0:08:56]} c6 {[%emt 0:01:34]} 4. cxd5 {[%emt 0:00:39]} exd5 {[%emt 0:00:09]} 5. Qc2 {[%emt 0:00:13]} Bd6 {[%emt 0:01:18]} 6. Nc3 {[%emt 0:00:26]} Ne7 {[%emt 0:01:30]} 7. Bg5 {[%emt 0:04:30]} f6 {[%emt 0:01:03]} 8. Bh4 {[%emt 0:11:19]} Nf5 {[%emt 0:05:56]} 9. Nf3 {[%emt 0:01:44]} g5 {[%emt 0:08:10]} 10. Bg3 {[%emt 0:00:15]} g4 {[%emt 0:00:26]} 11. Nh4 {[%emt 0:02:50]} Nxd4 {[%emt 0:03:28]} 12. Qa4 {[%emt 0:01:16]} Be5 {[%emt 0:10:23]} 13. e3 {[%emt 0:04:08]} Nf5 {[%emt 0:07:00]} 14. O-O-O {[%emt 0:06:10]} Nxh4 {[%emt 0:13:29]} 15. Bxh4 {[%emt 0:11:33]} b5 {[%emt 0:00:45]} 16. Qc2 {[%emt 0:15:07]} Be6 {[%emt 0:00:21]} 17. h3 {[%emt 0:06:51]} gxh3 {[%emt 0:02:01]} 18. f4 {[%emt 0:00:22]} Bd6 {[%emt 0:01:37]} 19. gxh3 {[%emt 0:03:02]} a5 {[%emt 0:02:31]} 20. e4 {[%emt 0:04:11]} Bxf4+ {[%emt 0:03:17]} 21. Kb1 {[%emt 0:00:06]} d4 {[%emt 0:02:34]} 22. Nxb5 {[%emt 0:07:53]} cxb5 {[%emt 0:07:41]} 23. Bxb5+ {[%emt 0:00:05]} Nd7 {[%emt 0:02:08]} 24. Rxd4 {[%emt 0:01:16]} Qb6 {[%emt 0:00:48]} 25. Qd3 {[%emt 0:06:40]} O-O-O {[%emt 0:01:03]} 26. Bxd7+ {[%emt 0:02:39]} Bxd7 {[%emt 0:03:07]} 27. Rd1 {[%emt 0:00:21]} Be5 {[%emt 0:01:13]} 28. Qc2+ {[%emt 0:00:50]} Bc6 {[%emt 0:00:34]} 29. Rd5 {[%emt 0:00:26]} Qc7 {[%emt 0:04:44]} 30. Qe2 {[%emt 0:00:39]} Bxd5 {[%emt 0:00:59]} 31. Rc1 {[%emt 0:00:32]} Ba2+ {[%emt 0:00:48]} 32. Kxa2 {[%emt 0:00:13]} Qxc1 {[%emt 0:00:04]} 33. Qa6+ {[%emt 0:00:16]} Kd7 {[%emt 0:00:05]} 34. Qb7+ {[%emt 0:00:17]} Qc7 {[%emt 0:00:11]} 0-1

[Event "European Womens-ch 2025"]
[Site "Rhodes"]
[Date "2025.04.10"]
[Round "10.9"]
[White "Milliet, Sophie"]
[Black "Urh, Zala"]
[Result "1/2-1/2"]
[Annotator "RC"]
[ECO "D85"]
[WhiteElo "2371"]
[BlackElo "2244"]
[PlyCount "126"]
[EventDate "2025.03.29"]
[EventType "swiss"]
[EventCountry "GRE"]
[SourceTitle "playchess.com"]
[Source "ChessBase"]
[SourceQuality "1"]
[TimeControl "40/5400+30:1800+30"]

1. d4 {[%emt 0:00:07]} Nf6 {[%emt 0:00:07]} 2. c4 {[%emt 0:00:04]} g6 {[%emt 0:00:27]} 3. Nc3 {[%emt 0:00:08]} d5 {[%emt 0:00:05]} 4. cxd5 {[%emt 0:00:06]} Nxd5 {[%emt 0:00:05]} 5. e4 {[%emt 0:00:05]} Nxc3 {[%emt 0:00:11]} 6. bxc3 {[%emt 0:00:04]} Bg7 {[%emt 0:00:18]} 7. Nf3 {[%emt 0:00:10]} c5 {[%emt 0:00:28]} 8. Be3 {[%emt 0:00:17]} Nc6 {[%emt 0:15:10]} 9. Qd2 {[%emt 0:09:08]} Qa5 {[%emt 0:03:03]} 10. Rb1 {[%emt 0:00:27]} a6 {[%emt 0:02:52]} 11. Rc1 {[%emt 0:00:08]} Bg4 {[%emt 0:13:23]} 12. d5 {[%emt 0:02:45]} Rd8 {[%emt 0:07:42]} 13. Be2 {[%emt 0:03:10]} O-O {[%emt 0:01:03]} 14. O-O {[%emt 0:14:51]} e6 {[%emt 0:08:17]} 15. Rfd1 {[%emt 0:12:24]} exd5 {[%emt 0:17:02]} 16. exd5 {[%emt 0:00:05]} Rd7 {[%emt 0:00:32]} 17. Ng5 {[%emt 0:09:30]} Bxe2 {[%emt 0:04:26]} 18. Qxe2 {[%emt 0:00:03]} Ne7 {[%emt 0:00:27]} 19. Qf3 {[%emt 0:10:24]} Nf5 {[%emt 0:04:07]} 20. Qh3 {[%emt 0:01:12]} h6 {[%emt 0:00:47]} 21. Ne4 {[%emt 0:00:30]} Re7 {[%emt 0:08:16]} 22. Nd2 {[%emt 0:04:27]} Nxe3 {[%emt 0:05:37]} 23. fxe3 {[%emt 0:00:02]} Bxc3 {[%emt 0:04:36]} 24. Nb3 {[%emt 0:00:26]} Qb4 {[%emt 0:00:04]} 25. d6 {[%emt 0:00:52]} Ree8 {[%emt 0:00:45]} 26. Qxh6 {[%emt 0:04:36]} b6 {[%emt 0:00:25]} 27. Qg5 {[%emt 0:05:34]} Rd8 {[%emt 0:01:35]} 28. Qd5 {[%emt 0:11:59]} c4 {[%emt 0:01:36]} 29. Na1 {[%emt 0:00:06]} Bxa1 {[%emt 0:00:56]} 30. Rxa1 {[%emt 0:00:01]} Rd7 {[%emt 0:00:29]} 31. e4 {[%emt 0:00:59]} Re8 {[%emt 0:00:30]} 32. Rac1 {[%emt 0:01:39]} Qb5 {[%emt 0:00:32]} 33. Qxc4 {[%emt 0:02:56]} Qe5 {[%emt 0:00:30]} 34. Qa4 {[%emt 0:06:31]} Red8 {[%emt 0:00:29]} 35. Rd5 {[%emt 0:01:32]} Qe6 {[%emt 0:00:31]} 36. Qxa6 {[%emt 0:00:37]} Rxd6 {[%emt 0:00:10]} 37. Rxd6 {[%emt 0:00:23]} Qxd6 {[%emt 0:00:19]} 38. Qc4 {[%emt 0:00:21]} Qd4+ {[%emt 0:00:56]} 39. Qxd4 {[%emt 0:00:04]} Rxd4 {[%emt 0:00:04]} 40. Rb1 {[%emt 0:00:00]} Rxe4 {[%emt 0:00:00]} 41. Rxb6 {[%emt 0:01:13]} Re2 {[%emt 0:02:23]} 42. a4 {[%emt 0:00:47]} Ra2 {[%emt 0:02:13]} 43. Rb4 {[%emt 0:00:31]} Kg7 {[%emt 0:10:12]} 44. h4 {[%emt 0:00:42]} Kh6 {[%emt 0:06:23]} 45. Kh2 {[%emt 0:02:15]} Ra3 {[%emt 0:00:05]} 46. g3 {[%emt 0:01:22]} f5 {[%emt 0:03:44]} 47. Kg2 {[%emt 0:01:40]} Kh5 {[%emt 0:00:52]} 48. Kf2 {[%emt 0:00:07]} Kh6 {[%emt 0:00:18]} 49. g4 {[%emt 0:05:43]} fxg4 {[%emt 0:01:34]} 50. Rxg4 {[%emt 0:00:04]} Kh5 {[%emt 0:00:08]} 51. Rb4 {[%emt 0:00:03]} g5 {[%emt 0:02:03]} 52. hxg5 {[%emt 0:00:03]} Kxg5 {[%emt 0:00:07]} 53. Ke2 {[%emt 0:00:03]} Kf5 {[%emt 0:00:13]} 54. Kd2 {[%emt 0:00:04]} Ke6 {[%emt 0:00:45]} 55. Kc2 {[%emt 0:00:08]} Kd6 {[%emt 0:00:40]} 56. Kb2 {[%emt 0:00:06]} Rh3 {[%emt 0:00:53]} 57. Rc4 {[%emt 0:00:20]} Rh7 {[%emt 0:00:36]} 58. Kb3 {[%emt 0:00:24]} Rc7 {[%emt 0:00:09]} 59. Rb4 {[%emt 0:00:52]} Rc5 {[%emt 0:00:58]} 60. Rb8 {[%emt 0:00:38]} Kc7 {[%emt 0:00:12]} 61. Rb5 {[%emt 0:01:21]} Rxb5+ {[%emt 0:00:07]} 62. axb5 {[%emt 0:00:05]} Kb6 {[%emt 0:00:03]} 63. Kc3 {[%emt 0:00:04]} Kxb5 {[%emt 0:00:03]} 1/2-1/2

[Event "European Womens-ch 2025"]
[Site "Rhodes"]
[Date "2025.04.10"]
[Round "10.10"]
[White "Kirtadze, Anastasia"]
[Black "Kiolbasa, Oliwia"]
[Result "1/2-1/2"]
[Annotator "RC"]
[ECO "B90"]
[WhiteElo "2180"]
[BlackElo "2360"]
[PlyCount "103"]
[EventDate "2025.03.29"]
[EventType "swiss"]
[EventCountry "GRE"]
[SourceTitle "playchess.com"]
[Source "ChessBase"]
[SourceQuality "1"]
[TimeControl "40/5400+30:1800+30"]

1. e4 {[%emt 0:00:03]} c5 {[%emt 0:00:32]} 2. Nf3 {[%emt 0:00:04]} d6 {[%emt 0:00:10]} 3. d4 {[%emt 0:00:04]} cxd4 {[%emt 0:00:09]} 4. Nxd4 {[%emt 0:00:18]} Nf6 {[%emt 0:00:19]} 5. Nc3 {[%emt 0:00:05]} a6 {[%emt 0:00:35]} 6. a3 {[%emt 0:01:51]} e5 {[%emt 0:07:35]} 7. Nf5 {[%emt 0:00:23]} d5 {[%emt 0:27:47]} 8. Bg5 {[%emt 0:00:58]} d4 {[%emt 0:00:21]} 9. Bxf6 {[%emt 0:00:51]} Qxf6 {[%emt 0:05:28]} 10. Nd5 {[%emt 0:00:24]} Qd8 {[%emt 0:01:56]} 11. c4 {[%emt 0:13:59]} Nc6 {[%emt 0:03:13]} 12. g4 {[%emt 0:11:20]} g6 {[%emt 0:08:24]} 13. Ng3 {[%emt 0:00:12]} Bh6 {[%emt 0:00:07]} 14. h4 {[%emt 0:12:06]} Bf4 {[%emt 0:00:14]} 15. Qf3 {[%emt 0:10:04]} d3 {[%emt 0:11:17]} 16. Bxd3 {[%emt 0:15:34]} Nd4 {[%emt 0:00:24]} 17. Qd1 {[%emt 0:00:06]} Be6 {[%emt 0:01:28]} 18. Kf1 {[%emt 0:10:45]} b5 {[%emt 0:04:08]} 19. Kg2 {[%emt 0:03:37]} Kf8 {[%emt 0:00:44]} 20. f3 {[%emt 0:02:59]} Rc8 {[%emt 0:05:45]} 21. b3 {[%emt 0:01:51]} h5 {[%emt 0:09:49]} 22. g5 {[%emt 0:06:48]} f6 {[%emt 0:04:20]} 23. Ne2 {[%emt 0:04:33]} fxg5 {[%emt 0:03:13]} 24. Nxd4 {[%emt 0:01:19]} Bxd5 {[%emt 0:02:18]} 25. exd5 {[%emt 0:00:43]} exd4 {[%emt 0:00:02]} 26. Bxg6 {[%emt 0:01:25]} gxh4 {[%emt 0:00:39]} 27. Qd3 {[%emt 0:00:44]} Qg5+ {[%emt 0:00:59]} 28. Kf1 {[%emt 0:00:12]} Kg7 {[%emt 0:00:46]} 29. Bf5 {[%emt 0:00:48]} Rcf8 {[%emt 0:00:29]} 30. Rg1 {[%emt 0:00:08]} Bg3 {[%emt 0:00:04]} 31. Qxd4+ {[%emt 0:00:50]} Kh6 {[%emt 0:00:33]} 32. Be4 {[%emt 0:00:07]} h3 {[%emt 0:00:33]} 33. Ke2 {[%emt 0:01:11]} h2 {[%emt 0:00:24]} 34. Rg2 {[%emt 0:00:32]} h4 {[%emt 0:01:04]} 35. Rh1 {[%emt 0:00:32]} Qf4 {[%emt 0:01:27]} 36. Rhxh2 {[%emt 0:00:25]} bxc4 {[%emt 0:00:22]} 37. bxc4 {[%emt 0:00:16]} Rhg8 {[%emt 0:00:48]} 38. Rh3 {[%emt 0:00:48]} Rb8 {[%emt 0:00:17]} 39. Rh1 {[%emt 0:00:31]} Rb3 {[%emt 0:00:33]} 40. Rd1 {[%emt 0:00:00]} Rgb8 {[%emt 0:00:00]} 41. Rd2 {[%emt 0:17:13]} Rf8 {[%emt 0:16:35]} 42. Rd3 {[%emt 0:07:13]} Rb1 {[%emt 0:05:54]} 43. Rg1 {[%emt 0:03:35]} Rxg1 {[%emt 0:04:37]} 44. Qxg1 {[%emt 0:00:02]} Rb8 {[%emt 0:00:23]} 45. Rd2 {[%emt 0:01:42]} Qf6 {[%emt 0:03:43]} 46. Qa7 {[%emt 0:02:02]} Rb2 {[%emt 0:02:22]} 47. Qh7+ {[%emt 0:00:43]} Kg5 {[%emt 0:00:04]} 48. Qg8+ {[%emt 0:01:30]} Kh6 {[%emt 0:00:52]} 49. Qh7+ {[%emt 0:00:42]} Kg5 {[%emt 0:00:02]} 50. Qg8+ {[%emt 0:00:05]} Kh6 {[%emt 0:00:04]} 51. Rxb2 {[%emt 0:01:09]} Qxb2+ {[%emt 0:00:05]} 52. Kd1 {[%emt 0:00:31]} 1/2-1/2

[Event "European Womens-ch 2025"]
[Site "Rhodes"]
[Date "2025.04.10"]
[Round "10.11"]
[White "Sieber, Fiona"]
[Black "Batsiashvili, Nino"]
[Result "0-1"]
[Annotator "TA"]
[ECO "C70"]
[WhiteElo "2276"]
[BlackElo "2473"]
[PlyCount "58"]
[EventDate "2025.03.29"]
[EventType "swiss"]
[EventCountry "GRE"]
[SourceTitle "playchess.com"]
[Source "ChessBase"]
[SourceQuality "1"]
[TimeControl "40/5400+30:1800+30"]

{[%evp 9,58,28,47,28,25,-6,4,-8,-1,-5,-16,-21,0,0,16,0,0,0,0,-80,-82,-219,-223,-212,-222,-222,-216,-216,-209,-487,-476,-503,-499,-513,-511,-519,-523,-534,-531,-510,-489,-911,-906,-5397,-898,-1192,-1172,-29992,-29993,-29993,-5277]} 1. e4 {[%emt 0:00:02]} e5 {[%emt 0:00:09]} 2. Nf3 {[%emt 0:00:05]} Nc6 {[%emt 0:00:03]} 3. Bb5 {[%emt 0:00:06]} a6 {[%emt 0:00:03]} 4. Ba4 {[%emt 0:00:04]} Bc5 {[%emt 0:00:04]} 5. c3 {[%emt 0:01:51]} Nge7 {[%emt 0:00:37]} 6. d4 {[%emt 0:00:23] C70: Ruy Lopez: 3...a6 4 Ba4, Norwegian and Delayed Schliemann.} exd4 {[%emt 0:00:05]} 7. Nxd4 {[%emt 0:07:05]} O-O {[%emt 0:04:26]} 8. Be3 {[%emt 0:05:23] The position is equal.} Nxd4 {[%emt 0:02:30]} 9. Bxd4 {[%emt 0:00:10]} Bxd4 {[%emt 0:00:40]} 10. Qxd4 {[%emt 0:00:10]} Ng6 $146 {[%emt 0:05:36][%cal Od7d5]} (10... d5 11. Nd2 b5 12. Bc2 Bb7 13. Rd1 Ng6 14. O-O Re8 15. f3 Nf4 16. Rf2 Qg5 {0-1 Fischer,A-Szekely,A HUN-chT (Women) 2005 (2)}) 11. Nd2 {[%emt 0:05:11]} d6 {[%emt 0:03:27]} 12. O-O-O {[%emt 0:05:10]} Be6 {[%emt 0:04:20]} 13. Bc2 {[%emt 0:09:26]} b5 {[%emt 0:05:25]} 14. Nf1 {[%emt 0:03:52]} (14. Kb1 $11 {remains equal.}) 14... Bxa2 $17 {[%emt 0:11:07]} 15. b3 {[%emt 0:14:02] White does not recover from this.} (15. Ne3 $17) 15... c5 $19 {[%emt 0:02:18]} 16. Qxd6 {[%emt 0:06:54]} Qa5 {[%emt 0:00:45]} 17. Qxc5 {[%emt 0:00:26] [#]} Bxb3 $1 {[%emt 0:06:38]} 18. Bxb3 {[%emt 0:07:40] [#]} Rac8 $1 {[%emt 0:00:06]} 19. Qd4 {[%emt 0:03:01]} (19. Bxf7+ Kh8 20. Qd4) 19... Rfd8 $1 {[%emt 0:01:08]} (19... Rxc3+ 20. Kb2 b4 21. Ra1 $14) 20. Bd5 {[%emt 0:02:37] Hoping for Kb2.} Rxc3+ {[%emt 0:02:04]} 21. Kb1 {[%emt 0:02:43] [#]} Rc4 $1 {[%emt 0:08:13][%mdl 512]} 22. Bxc4 {[%emt 0:02:34]} Rxd4 {[%emt 0:00:04]} 23. Bxf7+ {[%emt 0:05:09]} Kxf7 {[%emt 0:00:02]} (23... Kf8 24. Rxd4 Qe1+ (24... Kxf7 25. Ne3 $17) 25. Kc2 Qxf2+ (25... Kxf7 $2 26. Ng3 $19) 26. Rd2 Qc5+ (26... Qxf7 $2 27. Ng3 $19) 27. Kb1 Kxf7 28. Rb2 $19) 24. Rxd4 {[%emt 0:00:06]} Qe1+ {[%emt 0:01:06]} 25. Ka2 {[%emt 0:01:28]} (25. Kc2 $142 Qxf2+ 26. Rd2 Qc5+ 27. Kd1) 25... Ne5 {[%emt 0:00:47][%cal Oe1c3] ...Qc3! would now be deadly.} 26. f3 {[%emt 0:13:35]} Nc4 {[%emt 0:00:25]} (26... Qc3 $142 27. f4 Nc4 (27... Qxd4 $2 28. fxe5 b4 29. Ne3 $19) 28. Rxc4 bxc4 (28... Qxc4+ $2 29. Kb2 $19)) 27. Rxc4 {[%emt 0:00:13]} bxc4 {[%emt 0:00:14]} 28. Ng3 {[%emt 0:00:07]} Qd2+ {[%emt 0:00:22]} 29. Ka1 {[%emt 0:01:48]} c3 {[%emt 0:00:18] Weighted Error Value: White=1.18/Black=0.29 (precise)   Mistake:       	White=4     	---        Inaccurate:     	White=2     	---        OK:         	White=6     	Black=8      Best:        	White=1     	Black=3      Strong:       	---       	Black=2      Brilliant:      	---       	Black=1} (29... Qc3+ $142 30. Kb1 Qb3+ 31. Kc1 c3 32. Nf1 Qb2+ 33. Kd1 c2+ (33... Qxg2 $2 34. h4 $19) 34. Ke2 c1=Q+ 35. Kd3 Qcc3#) 0-1

[Event "European Womens-ch 2025"]
[Site "Rhodes"]
[Date "2025.04.10"]
[Round "10.12"]
[White "Avramidou, Anastasia"]
[Black "Beydullayeva, Govhar"]
[Result "1/2-1/2"]
[Annotator "RC"]
[ECO "E53"]
[WhiteElo "2275"]
[BlackElo "2400"]
[PlyCount "142"]
[EventDate "2025.03.29"]
[EventType "swiss"]
[EventCountry "GRE"]
[SourceTitle "playchess.com"]
[Source "ChessBase"]
[SourceQuality "1"]
[TimeControl "40/5400+30:1800+30"]

1. d4 {[%emt 0:00:04]} Nf6 {[%emt 0:01:20]} 2. c4 {[%emt 0:00:10]} e6 {[%emt 0:00:03]} 3. Nc3 {[%emt 0:00:10]} Bb4 {[%emt 0:00:07]} 4. e3 {[%emt 0:00:07]} O-O {[%emt 0:00:25]} 5. Bd3 {[%emt 0:00:08]} d5 {[%emt 0:00:10]} 6. a3 {[%emt 0:00:17]} Bxc3+ {[%emt 0:00:08]} 7. bxc3 {[%emt 0:00:08]} dxc4 {[%emt 0:00:07]} 8. Bxc4 {[%emt 0:00:11]} c5 {[%emt 0:00:04]} 9. Nf3 {[%emt 0:00:10]} Qc7 {[%emt 0:00:55]} 10. Be2 {[%emt 0:00:09]} b6 {[%emt 0:01:04]} 11. Bb2 {[%emt 0:00:15]} Bb7 {[%emt 0:01:04]} 12. O-O {[%emt 0:00:16]} Nc6 {[%emt 0:03:07]} 13. c4 {[%emt 0:02:27]} Rfd8 {[%emt 0:03:24]} 14. Qc2 {[%emt 0:10:33]} Ne7 {[%emt 0:03:39]} 15. Ne5 {[%emt 0:08:02]} Ng6 {[%emt 0:07:25]} 16. Nxg6 {[%emt 0:17:27]} hxg6 {[%emt 0:00:21]} 17. Rfd1 {[%emt 0:00:22]} cxd4 {[%emt 0:14:00]} 18. Bxd4 {[%emt 0:00:32]} Nd7 {[%emt 0:08:07]} 19. Qb2 {[%emt 0:19:03]} f6 {[%emt 0:04:32]} 20. Rac1 {[%emt 0:07:08]} Kf7 {[%emt 0:07:09]} 21. h3 {[%emt 0:04:09]} Rab8 {[%emt 0:10:06]} 22. Rd2 {[%emt 0:11:47]} Bc6 {[%emt 0:05:02]} 23. Bc3 {[%emt 0:04:08]} Nc5 {[%emt 0:01:49]} 24. Rcd1 {[%emt 0:01:42]} Rxd2 {[%emt 0:03:42]} 25. Rxd2 {[%emt 0:02:16]} Ne4 {[%emt 0:04:48]} 26. Rd1 {[%emt 0:01:19]} Rh8 {[%emt 0:00:56]} 27. Bf1 {[%emt 0:03:45]} Ng5 {[%emt 0:01:42]} 28. Qb4 {[%emt 0:03:09]} Ne4 {[%emt 0:04:33]} 29. Be1 {[%emt 0:01:31]} Qe5 {[%emt 0:06:01]} 30. f3 {[%emt 0:01:05]} Nc5 {[%emt 0:05:45]} 31. e4 {[%emt 0:00:25]} g5 {[%emt 0:00:22]} 32. Qc3 {[%emt 0:01:35]} Qxc3 {[%emt 0:00:31]} 33. Bxc3 {[%emt 0:00:03]} e5 {[%emt 0:00:13]} 34. Bb4 {[%emt 0:01:35]} Ke7 {[%emt 0:03:23]} 35. Kf2 {[%emt 0:00:55]} Rc8 {[%emt 0:01:03]} 36. Bxc5+ {[%emt 0:00:28]} bxc5 {[%emt 0:00:03]} 37. Rb1 {[%emt 0:00:10]} Rd8 {[%emt 0:01:14]} 38. Ke3 {[%emt 0:00:10]} g6 {[%emt 0:00:18]} 39. Bd3 {[%emt 0:01:29]} Kd6 {[%emt 0:00:20]} 40. Kd2 {[%emt 0:00:00]} Rf8 {[%emt 0:00:00]} 41. Kc3 {[%emt 0:05:28]} f5 {[%emt 0:04:43]} 42. Re1 {[%emt 0:01:46]} Ke6 {[%emt 0:00:58]} 43. Bc2 {[%emt 0:03:24]} Rd8 {[%emt 0:01:58]} 44. Bd3 {[%emt 0:01:43]} Kf6 {[%emt 0:02:51]} 45. Kd2 {[%emt 0:02:39]} Rh8 {[%emt 0:07:58]} 46. Ke3 {[%emt 0:01:08]} Ke6 {[%emt 0:03:13]} 47. Rb1 {[%emt 0:01:49]} Rf8 {[%emt 0:00:04]} 48. Be2 {[%emt 0:03:38]} Kd6 {[%emt 0:00:21]} 49. Rb2 {[%emt 0:01:22]} Kc7 {[%emt 0:00:21]} 50. Rb1 {[%emt 0:02:43]} Rf6 {[%emt 0:00:21]} 51. Bd3 {[%emt 0:02:19]} Bd7 {[%emt 0:00:31]} 52. Kd2 {[%emt 0:00:55]} Ra6 {[%emt 0:01:02]} 53. Ra1 {[%emt 0:03:39]} Kd6 {[%emt 0:01:44]} 54. Kc3 {[%emt 0:00:15]} Ke6 {[%emt 0:01:04]} 55. Bc2 {[%emt 0:01:14]} Ke7 {[%emt 0:01:43]} 56. Bd3 {[%emt 0:01:29]} Kf6 {[%emt 0:01:15]} 57. Kd2 {[%emt 0:01:07]} Bc6 {[%emt 0:01:07]} 58. Ke3 {[%emt 0:00:51]} Ra4 {[%emt 0:00:31]} 59. Kd2 {[%emt 0:01:17]} Ra6 {[%emt 0:02:59]} 60. Ke3 {[%emt 0:00:10]} Bd7 {[%emt 0:00:17]} 61. Kd2 {[%emt 0:00:18]} Be6 {[%emt 0:02:13]} 62. Kc3 {[%emt 0:00:52]} g4 {[%emt 0:03:50]} 63. exf5 {[%emt 0:00:46]} gxf5 {[%emt 0:00:06]} 64. hxg4 {[%emt 0:01:06]} fxg4 {[%emt 0:00:38]} 65. fxg4 {[%emt 0:00:10]} Bxg4 {[%emt 0:00:48]} 66. Be4 {[%emt 0:00:39]} Kg5 {[%emt 0:00:28]} 67. Bd5 {[%emt 0:00:42]} Bf5 {[%emt 0:00:25]} 68. Re1 {[%emt 0:00:54]} Kf6 {[%emt 0:01:08]} 69. Rf1 {[%emt 0:00:34]} Kg5 {[%emt 0:00:45]} 70. Re1 {[%emt 0:00:01]} Kf6 {[%emt 0:00:31]} 71. Rf1 {[%emt 0:00:01]} Kg5 {[%emt 0:00:05]} 1/2-1/2

[Event "European Womens-ch 2025"]
[Site "Rhodes"]
[Date "2025.04.10"]
[Round "10.13"]
[White "Vega Gutierrez, Sabrina"]
[Black "Schneider, Jana"]
[Result "1-0"]
[Annotator "RC"]
[ECO "C45"]
[WhiteElo "2380"]
[BlackElo "2251"]
[PlyCount "77"]
[EventDate "2025.03.29"]
[EventType "swiss"]
[EventCountry "GRE"]
[SourceTitle "playchess.com"]
[Source "ChessBase"]
[SourceQuality "1"]
[TimeControl "40/5400+30:1800+30"]

1. e4 {[%emt 0:00:04]} e5 {[%emt 0:00:14]} 2. Nf3 {[%emt 0:00:06]} Nc6 {[%emt 0:00:05]} 3. d4 {[%emt 0:00:05]} exd4 4. Nxd4 {[%emt 0:00:07]} Bc5 {[%emt 0:00:16]} 5. Nb3 {[%emt 0:00:11]} Bb4+ {[%emt 0:00:20]} 6. c3 {[%emt 0:00:14]} Be7 {[%emt 0:00:10]} 7. g3 {[%emt 0:00:24]} d6 {[%emt 0:01:27]} 8. Bg2 {[%emt 0:00:17]} Nf6 {[%emt 0:00:55]} 9. h3 {[%emt 0:03:33]} Be6 {[%emt 0:03:12]} 10. Nd4 {[%emt 0:01:18]} Nxd4 11. cxd4 {[%emt 0:00:19]} d5 {[%emt 0:06:21]} 12. e5 {[%emt 0:00:16]} Nd7 {[%emt 0:13:35]} 13. O-O {[%emt 0:04:58]} O-O {[%emt 0:01:49]} 14. Qe2 {[%emt 0:23:12]} Nb6 {[%emt 0:07:02]} 15. Nd2 {[%emt 0:07:22]} a5 {[%emt 0:05:33]} 16. f4 {[%emt 0:03:30]} Qc8 {[%emt 0:11:13]} 17. g4 {[%emt 0:00:38]} f5 {[%emt 0:01:02]} 18. exf6 {[%emt 0:01:44]} Bxf6 {[%emt 0:00:09]} 19. Nf3 {[%emt 0:00:50]} c5 {[%emt 0:03:13]} 20. f5 {[%emt 0:12:19]} Bd7 {[%emt 0:02:10]} 21. g5 {[%emt 0:11:38]} Bd8 {[%emt 0:04:41]} 22. dxc5 {[%emt 0:02:21]} Nc4 {[%emt 0:06:37]} 23. Nh4 {[%emt 0:01:34]} Qxc5+ {[%emt 0:00:20]} 24. Kh1 {[%emt 0:00:13]} d4 {[%emt 0:03:15]} 25. f6 {[%emt 0:13:00]} gxf6 {[%emt 0:05:19]} 26. g6 {[%emt 0:00:17]} hxg6 {[%emt 0:05:37]} 27. Nxg6 {[%emt 0:00:04]} Re8 {[%emt 0:00:08]} 28. Qf2 {[%emt 0:09:13]} Ne3 {[%emt 0:01:55]} 29. Bxe3 {[%emt 0:00:37]} dxe3 {[%emt 0:00:02]} 30. Qh4 {[%emt 0:00:18]} Kg7 {[%emt 0:01:08]} 31. Rg1 {[%emt 0:01:53]} e2 {[%emt 0:11:32]} 32. Ne7 {[%emt 0:02:34]} Kf7 {[%emt 0:02:36]} 33. Qh7+ {[%emt 0:00:43]} Ke6 {[%emt 0:00:01]} 34. Nd5 {[%emt 0:01:03]} Bc6 {[%emt 0:01:45]} 35. Nf4+ {[%emt 0:00:33]} Kd6 {[%emt 0:00:23]} 36. Rad1+ {[%emt 0:00:28]} exd1=Q {[%emt 0:01:18]} 37. Rxd1+ {[%emt 0:00:00]} Bd5 {[%emt 0:00:18]} 38. Nxd5 {[%emt 0:00:53]} Qc2 {[%emt 0:03:16]} 39. Qxc2 {[%emt 0:00:08]} 1-0